{"text_format":"1","workbook":"xlsx","n_sheets":3,"sheets":["Hoja1","Hoja2","Propuesta Transferencias 2023-1"],"not_rendered":{"charts":0,"images":0,"macros":0,"external_links":0,"defined_names":12,"comments":0,"pivot_tables":2},"unopened":[],"bounds":{"document_bytes":16777216,"sheet_cells":100000,"rows_first":2000,"rows_last":500,"rows_between":2000,"halvings":0,"cell_chars":16384,"cell_head_chars":4096},"cells_cut":0,"cells_raw":0,"read":"whole","date_system":"1900"}

{"sheet":"Hoja1","index":0,"n_rows":16,"n_cols":10,"rows_kept":16,"cut":false,"hidden":true,"merged":[]}
[]
[]
["Etiquetas de fila","Promedio de %"]
["2023-1",6.666666666666667]
["ALMACENES ",33.333333333333336]
["JEFATURA ADVA Y FINANCIERA DUSLE ",0,null,null,null,null,null,null,null,"Parametros"]
["JURÍDICA ",0,null,null,null,null,null,null,null,"Realizada"]
["BIBLIOTECA",0,null,null,null,null,null,null,null,"Pendiente"]
["TESORERIA",0,null,null,null,null,null,null,null,"Aplazada"]
["ANALISIS FINANCIERO ",0]
["REGISTRO ",0]
["RESTAURANTES",50]
["CONTABILIDAD",0]
["EDITORIAL",0]
["GESTION HUMANA",0]
["Total general",6.666666666666667]

{"sheet":"Hoja2","index":1,"n_rows":5,"n_cols":2,"rows_kept":5,"cut":false,"hidden":true,"merged":[]}
[]
[]
["Etiquetas de fila","Promedio de %"]
["2023-1",6.666666666666667]
["Total general",6.666666666666667]

{"sheet":"Propuesta Transferencias 2023-1","index":2,"n_rows":38,"n_cols":7,"rows_kept":38,"cut":false,"hidden":false,"merged":[[1,0,1,6],[2,0,2,6]]}
[]
["Cronograma de transferencias documentales - I semestre de 2023"]
["Gestión Documental"]
[]
[]
[]
[]
[]
[]
[]
["SEMESTRE","AREA","SERIE","NO. TRANSFERENCIA","FECHA TRANSFERENCIA","ESTADO","%"]
["2023-1","RESTAURANTES","COMPROBANTES DE DIARIO",1,"2023-02-02","Realizada",{"$f":"(COUNTIF(F12,\"Realizada\")*100)","v":100}]
["2023-1","ALMACENES ","COMPROBANTES DE DIARIO",1,"2023-02-02","Realizada",{"$f":"(COUNTIF(F13,\"Realizada\")*100)","v":100}]
["2023-1","EDITORIAL","GESTION DE PROYECTOS EDITORIALES ",2,"2023-02-09",null,0]
["2023-1","JEFATURA ADVA Y FINANCIERA DUSLE ","COMPROBANTES DE EGRESO",2,"2023-02-09",null,0]
["2023-1","REGISTRO ","ACTAS DE GRADO",3,"2023-03-01",null,{"$f":"(COUNTIF(F16,\"Realizada\")*100)","v":0}]
["2023-1","GESTION HUMANA","HISTORIAS LABORALES ",3,"2023-03-01",null,{"$f":"(COUNTIF(F17,\"Realizada\")*100)","v":0}]
["2023-1","GESTION HUMANA","PLANES",3,"2023-03-01",null,{"$f":"(COUNTIF(F18,\"Realizada\")*100)","v":0}]
["2023-1","BIBLIOTECA","AUTORIZACIONES DE TRABAJOS ACADEMICOS",4,"2023-03-15",null,{"$f":"(COUNTIF(F19,\"Realizada\")*100)","v":0}]
["2023-1","RESTAURANTES","COMPROBANTES DE DIARIO",5,"2023-03-22",null,0]
["2023-1","ALMACENES ","COMPROBANTES DE DIARIO",5,"2023-03-22",null,0]
["2023-1","JURÍDICA ","CONTRATOS",6,"2023-03-29",null,{"$f":"(COUNTIF(F22,\"Realizada\")*100)","v":0}]
["2023-1","JEFATURA ADVA Y FINANCIERA DUSLE ","COMPROBANTES DE EGRESO",7,"2023-04-12",null,{"$f":"(COUNTIF(F23,\"Realizada\")*100)","v":0}]
["2023-1","CONTABILIDAD","COMPROBANTES DE DIARIO",8,"2023-05-03",null,0]
["2023-1","CONTABILIDAD","INGRESOS CON INFORME CIERRE DE CAJA",8,"2023-05-03",null,0]
["2023-1","CONTABILIDAD","CONCILIACIONES BANCARIAS",8,"2023-05-03",null,0]
["2023-1","CONTABILIDAD","IMPUESTOS",8,"2023-05-03",null,0]
["2023-1","CONTABILIDAD","CONCILIACIONES DE INVERSIONES",8,"2023-05-03",null,0]
["2023-1","CONTABILIDAD","REQUERIMIENTOS ENTES DE CONTROL",8,"2023-05-03",null,0]
["2023-1","RESTAURANTES","COMPROBANTES DE DIARIO",9,"2023-05-10",null,{"$f":"(COUNTIF(F30,\"Realizada\")*100)","v":0}]
["2023-1","ALMACENES ","COMPROBANTES DE DIARIO",9,"2023-05-10",null,{"$f":"(COUNTIF(F31,\"Realizada\")*100)","v":0}]
["2023-1","GESTION HUMANA","HISTORIAS LABORALES ",11,"2023-05-31",null,{"$f":"(COUNTIF(F32,\"Realizada\")*100)","v":0}]
["2023-1","JEFATURA ADVA Y FINANCIERA DUSLE ","COMPROBANTES DE EGRESO",12,"2023-06-07",null,{"$f":"(COUNTIF(F33,\"Realizada\")*100)","v":0}]
["2023-1","JEFATURA ADVA Y FINANCIERA DUSLE ","ANTICIPOS GATOS MENORES",12,"2023-06-07",null,0]
["2023-1","TESORERIA","INGRESOS",13,"2023-06-15",null,{"$f":"(COUNTIF(F35,\"Realizada\")*100)","v":0}]
["2023-1","JURÍDICA ","CONTRATOS",14,"2023-06-21",null,0]
["2023-1","GESTIÓN DOCUMENTAL","COMUNICACIONES INSTITUCIONALES ENVIADAS ",15,"2023-06-28",null,0]
["2023-1","GESTIÓN DOCUMENTAL","COMUNICACIONES INSTITUCIONALES RECIBIDAS ",15,"2023-06-28",null,0]